bitfinex/quotes_ETHUSD_20240822
["timestamp","ask_amount","ask_price","bid_price","bid_amount"]
[1724316072509,0.26400956,2644.0,2643.4,3.0]
[1724316072808,2.4795,2643.7,2642.9,3.78369]
[1724316072988,2.4795,2643.7,2643.0,3.78348]
[1724316073189,0.03646193,2643.6,2643.1,3.7834]
[1724316074304,2.4907,2643.5,2643.2,3.0]
[1724316074509,2.4907,2643.5,2643.0,3.0]
[1724316074707,2.4907,2643.3,2643.0,3.0]
[1724316075116,0.03645565,2643.2,2643.0,3.0]
[1724316075413,2.4907,2643.1,2642.8,3.78385]
[1724316075556,2.52715679,2643.1,2642.6,3.78406]
[1724316075761,2.77987247,2643.1,2642.1,3.78476]
[1724316076216,2.77987247,2643.1,2642.3,3.78455]
[1724316076361,2.77987247,2643.1,2642.1,3.78473]
[1724316076557,2.3003,2642.9,2642.3,3.78457]
[1724316076807,0.03613594,2642.8,2642.1,7.5695]
[1724316076956,2.3003,2642.7,2642.2,3.78471]
[1724316077160,0.03613377,2642.6,2642.2,3.78471]
[1724316077382,0.03613377,2642.6,2642.3,3.0]
[1724316077632,0.03613377,2642.6,2642.3,6.78454]
[1724316077926,0.03613377,2642.6,2642.3,10.56908]
[1724316078281,0.03613377,2642.6,2642.3,6.78454]
[1724316078485,0.03613377,2642.6,2642.3,10.56904]
[1724316078787,0.03613377,2642.6,2642.3,6.78448]
[1724316079364,2.3003,2642.7,2642.3,10.56897]
[1724316079540,0.03613377,2642.6,2642.4,3.78442]
[1724316079830,0.03613377,2642.6,2642.5,3.0]
[1724316080836,0.26977715,2642.6,2641.7,3.086]
[1724316081139,7.3,2643.0,2642.2,3.78469]
[1724316081140,2.3525,2642.5,2642.2,3.78469]
[1724316081285,0.03613062,2642.4,2642.2,3.78469]
[1724316081485,0.03613062,2642.4,2642.2,3.7847]
[1724316081785,0.03613062,2642.4,2642.2,3.78463]
[1724316082112,0.03613062,2642.4,2642.3,3.0]
[1724316082427,0.03613062,2642.4,2642.2,6.7847]
[1724316083105,0.03613062,2642.4,2642.2,10.5694]
[1724316083294,0.03613062,2642.4,2642.3,3.78458]
[1724316083482,0.03613062,2642.4,2642.3,10.56916]
[1724316083678,0.03613062,2642.4,2642.3,13.65516]
[1724316083883,2.4992,2642.8,2642.6,3.78407]
[1724316084205,2.4992,2642.8,2642.6,7.56814]
[1724316084206,0.03613492,2642.7,2642.6,7.56814]
[1724316084514,2.3339,2643.1,2643.0,3.78357]
[1724316084715,2.37004163,2643.1,2643.0,3.78357]
[1724316085538,2.3339,2643.4,2643.0,6.78357]
[1724316085843,0.03614477,2643.3,2643.1,3.0]
[1724316087529,0.03614477,2643.3,2643.2,3.78329]
[1724316088027,9.6341,2643.7,2643.2,6.78329]
[1724316088234,0.03605444,2643.3,2643.2,6.78329]
[1724316088559,0.03605444,2643.3,2643.2,3.0]
[1724316088713,2.3341,2643.7,2643.0,3.0]
[1724316088909,0.03605916,2643.6,2643.0,6.78353]
[1724316089202,2.4139,2643.5,2643.0,3.0]
[1724316089385,2.4139,2643.5,2642.9,3.0]
[1724316089586,0.03605601,2643.4,2642.9,3.0]
[1724316090011,0.03605601,2643.4,2642.9,6.78369]
[1724316090737,0.03605601,2643.4,2642.9,6.78361]
[1724316090881,0.03605601,2643.4,2643.0,3.78344]
[1724316091120,0.03605601,2643.4,2643.1,6.78339]
[1724316092286,0.03605601,2643.4,2643.1,3.0]
[1724316092492,0.03605601,2643.4,2643.0,6.78357]
[1724316093097,0.03605601,2643.4,2643.2,3.78322]
[1724316093506,0.03605601,2643.4,2643.2,3.78329]
[1724316095800,0.03605601,2643.4,2643.1,3.78342]
[1724316096159,0.03605601,2643.4,2643.2,3.0]
[1724316096314,2.4585,2643.3,2642.9,3.78361]
[1724316096519,2.4585,2643.3,2643.0,3.0]
[1724316096735,0.03605287,2643.2,2643.0,3.0]
[1724316097046,2.4585,2643.3,2643.0,3.0]
[1724316097249,0.0360513,2643.1,2643.0,3.0]
[1724316097431,0.0360513,2643.1,2642.8,3.0]
[1724316097602,2.3022,2643.0,2642.6,3.78413]
[1724316097803,2.33824972,2643.0,2642.4,6.78437]
[1724316098152,2.33824972,2643.0,2642.8,3.78375]
[1724316098298,2.33824972,2643.0,2642.9,3.78372]
[1724316098498,2.33824972,2643.0,2642.8,3.78385]
[1724316100498,2.33824972,2643.0,2642.7,3.78399]
[1724316100650,2.33824972,2643.0,2642.8,3.0]
[1724316100994,2.33824972,2643.0,2642.8,6.78379]
[1724316101899,0.03604972,2643.0,2642.9,3.78372]
[1724316102188,2.4455,2643.3,2643.0,3.78348]
[1724316102813,2.4455,2643.3,2642.8,3.0]
[1724316103020,2.69005,2643.3,2642.8,3.0]
[1724316103176,2.4455,2643.3,2642.8,3.0]
[1724316104620,2.4455,2643.3,2642.8,6.78379]
[1724316105715,2.4455,2643.3,2642.8,3.0]
[1724316109825,2.4455,2643.3,2642.7,3.0]
[1724316109979,3.068352,2643.3,2642.7,3.0]
[1724316110183,2.4671,2643.2,2642.7,3.0]
[1724316111130,3.78344,2643.1,2642.7,3.0]
[1724316111421,2.4671,2643.0,2642.4,3.0]
[1724316111629,2.4671,2642.9,2642.4,3.0]
[1724316111833,2.4671,2642.9,2642.3,3.0]
[1724316112511,2.4671,2642.9,2642.4,3.78433]
[1724316112824,2.4671,2642.9,2642.7,3.78399]
[1724316113028,2.4671,2642.9,2642.6,3.78408]
[1724316113241,2.4671,2642.9,2642.3,6.086]
[1724316113389,9.6926,2643.2,2642.7,3.78389]
[1724316113589,9.6926,2643.2,2642.8,3.78385]
[1724316113933,0.03470755,2643.1,2642.7,3.78394]
[1724316114135,0.03470755,2643.1,2642.7,3.78392]
[1724316114286,0.03470755,2643.1,2642.8,3.0]
[1724316114789,0.03470755,2643.1,2642.7,6.78398]
[1724316116506,0.03470755,2643.1,2642.7,6.78394]
[1724316116936,0.03470755,2643.1,2642.7,10.56788]
[1724316117122,0.03470755,2643.1,2642.7,6.78394]
[1724316117320,0.03470755,2643.1,2642.7,6.78393]
[1724316118606,0.03470755,2643.1,2642.7,6.78392]
[1724316119764,0.03470755,2643.1,2642.8,3.78384]
[1724316120971,0.03470755,2643.1,2642.7,6.784]
[1724316121317,0.03470755,2643.1,2642.7,3.0]
[1724316121549,0.03470755,2643.1,2642.1,0.78831737]
[1724316121550,2.4489,2643.0,2642.6,3.0]
[1724316121775,2.3665,2642.9,2642.2,3.78465]
[1724316121920,2.40126655,2642.9,2642.3,3.0]
[1724316122511,2.40126655,2642.9,2642.3,6.78453]
[1724316123067,2.3276,2642.8,2642.3,3.0]
[1724316123562,0.03472951,2642.7,2642.3,6.78454]
[1724316123921,2.3276,2642.8,2642.3,6.78454]
[1724316124124,0.03475617,2642.6,2642.3,6.78454]
[1724316124434,0.0347546,2642.5,2642.3,6.78454]
[1724316124633,2.3276,2642.8,2642.5,3.78428]
[1724316124833,2.3276,2642.8,2642.6,6.78413]
[1724316125071,2.3276,2642.8,2642.7,3.784]
[1724316127033,2.3276,2642.8,2642.6,6.78413]
[1724316128874,0.03471255,2642.7,2642.6,6.78413]
[1724316129074,2.3276,2642.8,2642.6,6.78413]
[1724316129393,2.4013,2643.2,2642.7,3.784]
[1724316129574,2.4013,2643.2,2642.8,6.78376]
[1724316130191,2.4013,2643.2,2642.9,3.78372]
[1724316130394,5.55,2643.3,2643.1,3.78336]
[1724316131212,5.55,2643.3,2643.1,3.78335]
[1724316131552,5.55,2643.3,2643.2,10.65258]
[1724316131715,5.55,2643.3,2643.2,14.55764962]
[1724316132006,5.55,2643.3,2643.2,14.20258]
[1724316133098,5.55,2643.3,2643.2,14.557443]
[1724316133304,5.55,2643.3,2643.2,14.20258]
[1724316137063,5.55,2643.3,2642.9,3.78362]
[1724316137260,0.555,2643.2,2642.8,3.78378]
[1724316137556,2.3,2643.2,2642.8,7.56756]
[1724316138015,2.3,2643.2,2642.8,3.78378]
[1724316138649,2.3,2643.2,2642.7,3.78398]
[1724316138650,3.0373539,2643.2,2642.7,3.78398]
[1724316138809,3.0373539,2643.2,2642.8,3.78386]
[1724316139234,3.0373539,2643.2,2642.8,7.56764]
[1724316139435,2.3,2643.2,2642.8,7.56764]
[1724316139920,2.3,2643.2,2642.8,3.78378]
[1724316140511,2.3,2643.2,2642.9,3.0]
[1724316141841,5.55,2643.0,2642.9,3.0]
[1724316143978,5.58544016,2643.0,2642.9,3.0]
[1724316146845,8.74858418,2643.0,2642.8,3.0]
[1724316147199,8.74858418,2643.0,2642.6,6.78408]
[1724316147333,7.96004016,2643.0,2642.6,10.56815]
[1724316147697,7.96004016,2643.0,2642.7,3.78397]
[1724316147900,7.96004016,2643.0,2642.8,3.0]
[1724316148119,2.4857,2642.9,2642.0,1.18247606]
[1724316148404,2.4857,2642.9,2641.9,3.78501]
[1724316148405,2.4927,2642.7,2641.9,3.78501]
[1724316148568,2.4927,2642.7,2642.0,3.78501]
[1724316148755,2.4927,2642.5,2642.0,3.78501]
[1724316149199,0.79600402,2642.9,2641.8,7.57038]
[1724316149200,2.4927,2642.3,2641.8,7.57038]
[1724316149369,2.4927,2642.3,2641.8,3.78518]
[1724316149370,0.25277706,2642.2,2641.8,3.78518]
[1724316149572,0.03506745,2642.2,2641.8,3.78518]
[1724316149913,2.4927,2642.3,2641.6,3.78554]
[1724316150234,2.4901,2642.0,2641.6,3.78548]
[1724316150513,2.4901,2642.0,2641.6,3.78547]
[1724316150868,0.03469018,2641.9,2641.6,3.78547]
[1724316151402,0.03469018,2641.9,2641.6,7.57095]
[1724316151641,2.4901,2642.0,2641.6,3.78547]
[1724316151938,0.03467887,2641.9,2641.6,3.78547]
[1724316152134,0.03467887,2641.9,2641.7,3.0]
[1724316152538,2.4162,2641.8,2641.7,3.0]
[1724316152763,2.66128789,2641.8,2641.5,3.0]
[1724316152948,2.4508773,2641.8,2641.5,3.0]
[1724316153713,2.4508773,2641.8,2641.5,6.78566]
[1724316154109,2.4508773,2641.8,2641.6,3.78557]
[1724316154439,2.4508773,2641.8,2641.7,3.0]
[1724316156648,2.4508773,2641.8,2641.7,6.78544]
[1724316157501,0.0346773,2641.8,2641.7,10.57088]
[1724316157943,2.2743,2642.0,2641.9,7.5703]
[1724316158148,2.2743,2642.0,2641.9,10.5703]
[1724316158952,2.2743,2642.0,2641.9,6.78515]
[1724316160615,2.3989,2642.7,2641.9,6.78515]
[1724316160859,2.4328667,2642.6,2641.9,6.78515]
[1724316161033,2.3989,2642.5,2641.9,3.0]
[1724316161234,3.8181167,2642.6,2641.8,3.0]
[1724316161235,3.8184092,2642.4,2641.8,3.0]
[1724316161456,2.3989,2642.3,2641.6,3.0]
[1724316161655,0.03396606,2642.2,2641.6,3.0]
[1724316161844,3.78444,2642.4,2641.6,3.0]
[1724316161845,2.3989,2642.1,2641.6,3.0]
[1724316162012,0.03396291,2642.0,2641.6,3.0]
[1724316163138,2.3989,2641.9,2641.6,3.0]
[1724316163458,0.03395976,2641.8,2641.6,3.0]
[1724316163613,0.03395976,2641.8,2641.6,3.78555]
[1724316163813,0.03395976,2641.8,2641.7,3.0]
[1724316164550,0.03395976,2641.8,2641.7,6.78544]
[1724316164958,2.3989,2641.9,2641.8,3.78529]
[1724316165249,2.2904,2642.4,2641.9,3.78502]
[1724316166066,2.2904,2642.4,2641.7,6.78532]
[1724316166636,2.2904,2642.4,2641.7,3.0]
[1724316166962,2.4218,2642.2,2641.7,3.0]
[1724316167107,2.4218,2642.2,2641.3,3.086]
[1724316167108,2.4218,2642.1,2641.6,6.78556]
[1724316167732,2.4218,2642.1,2641.6,3.0]
[1724316168049,2.4475,2642.0,2641.4,3.0]
[1724316169307,3.78503,2642.0,2641.4,3.0]
[1724316169512,2.4869,2641.9,2641.3,3.0]
[1724316169712,2.4365,2641.7,2641.3,3.0]
[1724316169970,2.4365,2641.7,2641.2,3.0]
[1724316170955,2.4365,2641.7,2641.2,6.78615]
[1724316171754,2.4365,2641.7,2641.3,3.78601]
[1724316171959,2.4365,2641.7,2641.4,3.0]
[1724316172142,2.68015,2641.7,2641.2,6.78613]
[1724316172321,2.68015,2641.7,2641.2,6.78609]
[1724316172516,2.68015,2641.7,2641.2,6.78607]
[1724316172865,2.68015,2641.7,2641.3,3.786]
[1724316173049,2.68015,2641.7,2641.4,3.0]
[1724316173966,0.033804,2641.6,2641.4,3.0]
[1724316174412,0.033804,2641.6,2641.4,6.78581]
[1724316174609,0.033804,2641.6,2641.5,3.78572]
[1724316174760,0.033804,2641.6,2641.5,7.57144]
[1724316175603,0.033804,2641.6,2641.5,3.78572]
[1724316177942,0.033804,2641.6,2641.5,7.57144]
[1724316178278,0.033804,2641.6,2641.5,3.78572]
[1724316179392,0.033804,2641.6,2641.4,3.78585]
[1724316179738,0.033804,2641.6,2641.3,3.78589]
[1724316179883,0.033804,2641.6,2641.4,3.0]
[1724316180698,2.3126,2641.5,2641.4,3.0]
[1724316181041,2.3126,2641.5,2641.3,6.78599]
[1724316181347,2.34618198,2641.5,2641.3,6.78599]
[1724316181531,2.34618198,2641.5,2641.4,3.78587]
[1724316181753,2.34618198,2641.5,2641.4,6.78587]
[1724316181909,2.34618198,2641.5,2641.4,3.0]
[1724316182113,2.34618198,2641.5,2641.3,3.0]
[1724316182307,2.3126,2641.5,2641.3,6.78597]
[1724316182513,0.0335804,2641.4,2641.3,6.78597]
[1724316184917,0.0335804,2641.4,2641.3,3.0]
[1724316185658,0.0335804,2641.4,2641.1,3.0]
[1724316185808,0.0335804,2641.4,2641.1,6.78624]
[1724316186423,0.0335804,2641.4,2641.3,3.78601]
[1724316186627,0.0335804,2641.4,2641.3,6.78601]
[1724316189330,0.0335804,2641.4,2641.3,3.0]
[1724316195011,0.0335804,2641.4,2641.3,6.78601]
[1724316198073,0.0335804,2641.4,2641.3,10.57202]
[1724316198365,9.5821,2641.8,2641.6,3.78548]
[1724316201480,9.5821,2641.8,2641.5,3.78571]
[1724316202326,10.54031,2641.8,2641.5,3.78571]
[1724316202826,2.4678,2641.7,2641.3,3.0]
[1724316203056,2.4678,2641.7,2641.4,3.0]
[1724316203368,2.4678,2641.7,2641.3,3.0]
[1724316203926,0.03349392,2641.6,2641.3,3.0]
[1724316204169,2.4849,2641.5,2641.3,3.0]
[1724316204532,0.03349077,2641.4,2641.3,3.0]
[1724316206424,0.03349077,2641.4,2641.3,4.289]
[1724316207477,0.03349077,2641.4,2641.3,8.07501]
[1724316208341,2.4953,2641.7,2641.3,8.07501]
[1724316208563,2.4953,2641.7,2641.5,1.289]
[1724316208872,3.47483,2641.7,2641.5,1.289]
[1724316210263,2.4953,2641.7,2641.5,1.289]
[1724316216297,2.4953,2641.7,2641.3,6.78594]
[1724316216298,2.4953,2641.7,2641.3,8.07494]
[1724316216517,2.4953,2641.7,2641.3,4.289]
[1724316216518,1.98768077,2641.7,2641.3,4.289]
[1724316216813,2.4571,2641.5,2641.3,1.289]
[1724316219006,0.0335021,2641.4,2641.3,1.289]
[1724316219314,2.321,2641.2,2640.4,0.78831737]
[1724316219459,7.57219,2641.3,2640.4,0.78831737]
[1724316219460,2.321,2641.0,2640.5,1.289]
[1724316219659,0.03329068,2640.9,2640.5,1.289]
[1724316220503,0.03329068,2640.9,2640.4,3.78722]
[1724316220862,0.03329068,2640.9,2640.2,7.14291746]
[1724316221259,0.36765165,2640.9,2640.2,7.14291056]
[1724316221681,0.36765165,2640.9,2640.2,6.78748]
[1724316222099,2.3629,2640.8,2640.2,6.78748]
[1724316222296,0.03328447,2640.7,2640.2,6.78748]
[1724316222713,0.03328447,2640.7,2640.2,3.0]
[1724316223121,2.4606,2640.6,2640.2,3.0]
[1724316223524,0.03328132,2640.5,2640.1,3.0]
[1724316224026,3.085338,2640.6,2640.1,3.0]
[1724316225981,2.4606,2640.6,2640.1,3.0]
[1724316230045,2.4606,2640.6,2640.0,3.0]
[1724316230252,3.78676,2640.8,2639.5,3.78852]
[1724316230253,3.78747,2640.3,2639.5,3.78852]
[1724316230413,3.78747,2640.3,2639.1,10.576]
[1724316230414,2.3944,2640.1,2639.3,7.57751]
[1724316230617,2.3944,2640.0,2639.3,3.78874]
[1724316231803,2.3944,2640.0,2639.2,3.78902]
[1724316232006,2.3984,2639.8,2639.2,3.78902]
[1724316232687,2.3984,2639.8,2639.3,3.0]
[1724316233156,2.3984,2639.8,2639.1,7.48]
[1724316233356,2.3984,2639.8,2639.1,11.26914]
[1724316233504,2.2672,2639.7,2639.1,3.78914]
[1724316233905,2.2672,2639.7,2639.1,3.78909]
[1724316234150,2.2672,2639.7,2639.1,7.57818]
[1724316234451,2.2672,2639.7,2639.1,3.78909]
[1724316234702,2.2672,2639.7,2639.2,3.0]
[1724316239235,2.4485,2639.6,2639.1,3.0]
[1724316239368,2.4485,2639.6,2639.0,3.0]
[1724316240311,2.4366,2639.5,2639.0,3.0]
[1724316240598,2.4366,2639.5,2639.0,6.7893]
[1724316242221,2.4366,2639.5,2639.0,3.0]
[1724316242578,2.4366,2639.5,2638.9,3.0]
[1724316242788,3.1196718,2639.5,2638.9,3.0]
[1724316243322,3.1196718,2639.5,2638.9,6.78944]
[1724316243504,2.4366,2639.5,2638.9,6.78944]
[1724316245631,2.4366,2639.5,2638.9,3.0]
[1724316245769,3.7889,2639.3,2638.9,3.0]
[1724316245969,2.4904,2639.1,2638.4,3.79003]
[1724316247274,2.3784,2639.0,2638.3,3.7903]
[1724316247507,2.3784,2639.0,2638.4,3.0]
[1724316248818,2.3784,2638.9,2638.4,3.0]
[1724316249126,2.3784,2638.9,2637.8,6.8869]
[1724316249127,2.3373,2638.6,2637.8,6.8869]
[1724316249269,2.3373,2638.6,2637.9,3.79088]
[1724316250469,2.3373,2638.6,2638.0,6.79074]
[1724316250892,2.3373,2638.6,2638.1,3.096]
[1724316251073,2.3373,2638.6,2638.2,3.0]
[1724316253006,2.3373,2638.6,2638.2,6.79045]
[1724316253325,2.3373,2638.6,2638.2,3.0]
[1724316254344,2.57103,2638.6,2638.2,3.0]
[1724316255328,2.57103,2638.6,2637.9,3.79081]
[1724316255329,2.3943,2638.5,2637.8,6.88696]
[1724316255539,2.3943,2638.5,2637.9,3.0]
[1724316255700,2.3943,2638.5,2637.9,6.79087]
[1724316256734,2.3943,2638.5,2638.0,3.79074]
[1724316256937,2.3943,2638.5,2638.2,3.79044]
[1724316257105,2.3943,2638.5,2638.4,3.096]
[1724316259219,2.3943,2638.5,2638.2,7.58082]
[1724316260148,2.3943,2638.5,2638.2,3.79037]
[1724316260330,2.3943,2638.5,2638.2,7.58075]
[1724316260530,2.3943,2638.5,2638.2,3.79037]
[1724316261755,2.3943,2638.5,2638.1,6.88659]
[1724316262053,2.3943,2638.5,2638.2,3.0]
[1724316262349,2.3943,2638.5,2638.2,6.79045]
[1724316264257,2.3943,2638.5,2638.2,10.58085]
[1724316264548,3.78946,2638.9,2638.6,3.7898]
[1724316264549,2.3537,2638.9,2638.6,3.7898]
[1724316264972,2.3537,2638.9,2638.4,10.67609]
[1724316265267,2.3537,2638.9,2638.5,6.78992]
[1724316265579,2.58907,2638.9,2638.5,3.0]
[1724316265723,2.3429,2638.8,2638.3,3.0]
[1724316265923,2.3429,2638.8,2638.3,6.79031]
[1724316268286,2.4677,2638.8,2638.0,3.79065]
[1724316268477,2.4677,2638.6,2638.0,3.79063]
[1724316268693,2.4677,2638.6,2638.1,6.8866]
[1724316268902,2.4677,2638.6,2638.2,3.79038]
[1724316269052,2.4677,2638.6,2638.4,3.096]
[1724316269247,2.4677,2638.6,2638.4,6.88603]
[1724316270595,2.4677,2638.6,2638.4,3.096]
[1724316272852,2.4677,2638.6,2638.1,6.79055]
[1724316273075,2.4677,2638.6,2638.1,3.0]
[1724316273273,3.09343,2638.6,2638.1,3.0]
[1724316273473,2.3879,2638.5,2638.1,3.0]
[1724316273669,2.3879,2638.4,2637.9,3.0]
[1724316275103,2.3879,2638.4,2638.0,3.096]
[1724316277893,2.3879,2638.4,2638.0,6.88663]
[1724316278094,2.3879,2638.4,2638.0,3.096]
[1724316278458,2.3879,2638.4,2638.0,6.88674]
[1724316278808,2.3879,2638.4,2638.0,3.096]
[1724316280256,2.3879,2638.4,2638.0,6.88664]
[1724316280452,2.3879,2638.4,2638.3,1.292]
[1724316283302,2.4121,2638.8,2638.3,1.292]
[1724316283507,6.2017,2638.8,2638.7,1.292]
[1724316283714,3.7896,2638.8,2638.7,1.292]
[1724316283882,6.2017,2638.8,2638.7,1.292]
[1724316284228,7.2766034,2638.8,2638.7,1.292]
[1724316288506,2.4586,2638.7,2638.5,1.292]
[1724316288708,3.78976,2638.7,2638.2,3.0]
[1724316288910,2.4586,2638.6,2638.5,1.292]
[1724316300897,2.2525,2638.8,2638.6,3.78987]
[1724316301111,4.25761082,2639.0,2638.7,5.08174]
[1724316301316,4.25761082,2639.0,2638.9,1.292]
[1724316301635,2.2702,2639.0,2638.9,1.292]
[1724316303909,4.45402723,2639.2,2638.9,5.08135]
[1724316304132,2.4665,2639.2,2639.1,1.292]
[1724316306444,2.3708,2639.4,2639.1,1.292]
[1724316306687,3.00780779,2639.4,2639.3,1.292]
[1724316306964,6.79653779,2639.4,2639.3,1.292]
[1724316308011,2.4572,2639.2,2638.8,3.0]
[1724316308221,2.4572,2639.2,2638.5,6.1017]
[1724316308222,6.24623,2639.2,2639.0,1.292]
[1724316308803,2.4572,2639.2,2639.0,1.292]
[1724316313952,6.24625,2639.2,2639.0,1.292]
[1724316314266,0.624625,2639.1,2639.0,1.292]
[1724316315325,2.4572,2639.2,2639.0,1.292]
[1724316316859,7.89409068,2639.5,2639.0,1.292]
[1724316317175,7.89409068,2639.5,2639.3,1.292]
[1724316317176,2.2754,2639.4,2639.3,1.292]
[1724316317679,2.4596,2639.7,2639.3,1.292]
[1724316317823,2.4596,2639.7,2639.6,1.292]
[1724316318020,2.4596,2640.0,2639.6,1.292]
[1724316318223,6.23166706,2640.0,2639.8,1.292]
[1724316318467,10.01955706,2640.0,2639.8,1.292]
[1724316318678,2.487,2639.8,2639.4,1.292]
[1724316319467,2.487,2639.8,2639.6,1.292]
[1724316322830,3.7883,2639.7,2639.6,1.292]
[1724316323229,3.7883,2639.7,2639.4,1.292]
[1724316323472,0.62753,2639.6,2639.4,1.292]
[1724316323825,2.3832,2639.5,2639.1,3.0]
[1724316324178,6.17187,2639.5,2639.3,1.292]
[1724316324478,0.67994,2639.4,2639.3,1.292]
[1724316325481,3.06314,2639.4,2639.1,1.292]
[1724316325692,3.78891,2639.3,2638.7,3.0]
[1724316325856,3.78891,2639.3,2639.1,1.292]
[1724316326036,6.17195,2639.4,2639.1,1.292]
[1724316327639,6.17195,2639.4,2639.3,1.292]
[1724316327843,7.167993,2639.4,2639.3,1.292]
[1724316328059,3.379243,2639.4,2639.3,1.292]
[1724316328882,3.379243,2639.4,2639.1,1.292]
[1724316329885,6.24591,2639.3,2639.1,1.292]
[1724316330190,2.457,2639.2,2638.9,1.292]
[1724316330359,2.457,2639.2,2639.1,1.292]
[1724316332599,2.457,2639.2,2638.7,3.0]
[1724316333261,3.08158,2639.2,2638.7,3.0]
[1724316333652,2.3164,2638.9,2638.2,6.89034]
[1724316334071,2.3164,2638.9,2638.3,3.79028]
[1724316334865,2.3164,2638.9,2638.5,3.78997]
[1724316335182,2.4076,2639.1,2638.5,6.18257]
[1724316335495,2.4076,2639.1,2638.5,9.28257]
[1724316335794,2.4076,2639.0,2638.5,3.1]
[1724316335994,2.4076,2638.8,2638.2,9.89037]
[1724316336200,2.4076,2638.8,2638.3,3.0]
[1724316337948,2.4076,2638.8,2638.3,6.79031]
[1724316338255,2.4076,2638.8,2638.4,3.79009]
[1724316338556,2.3224,2639.1,2638.5,3.79]
[1724316338804,6.11158,2639.1,2638.4,3.79016]
[1724316339090,0.611144,2639.0,2638.4,3.79016]
[1724316340813,2.3083,2638.9,2638.4,3.79016]
[1724316341189,2.3083,2638.9,2638.3,3.0]
[1724316341398,2.3083,2638.9,2638.3,6.79031]
[1724316341399,3.3580894,2638.9,2638.3,6.79031]
[1724316342619,7.1475594,2638.9,2638.3,3.0]
[1724316343414,3.3580894,2638.9,2638.3,6.7903]
[1724316343597,3.3580894,2638.9,2638.3,3.0]
[1724316343598,4.56551634,2638.8,2638.3,3.0]
[1724316343988,8.35519634,2638.8,2638.3,3.0]
[1724316344190,4.56551634,2638.8,2638.3,3.0]
[1724316347477,0.77585634,2638.8,2638.3,6.79026]
[1724316347676,0.77585634,2638.8,2638.3,3.0]
[1724316348428,2.3083,2638.9,2638.4,3.79011]
[1724316349008,2.3083,2638.9,2638.5,3.79002]
[1724316350329,2.3083,2638.9,2638.7,3.78966]
[1724316350682,2.3083,2638.9,2638.6,3.78987]
[1724316354521,2.3083,2638.9,2638.8,1.292]
[1724316354908,2.2824,2639.1,2638.8,1.292]
[1724316355115,2.2824,2639.1,2639.0,1.292]
[1724316357083,3.619529,2639.1,2639.0,1.292]
[1724316358850,11.337169,2639.1,2639.0,1.292]
[1724316359456,7.547999,2639.1,2639.0,1.292]
[1724316360120,3.758829,2639.1,2639.0,1.292]
[1724316360458,2.4217,2639.1,2638.4,3.0]
[1724316360753,2.4217,2639.1,2638.0,0.44214578]
[1724316360754,2.378,2638.8,2638.6,1.292]
[1724316362240,2.994747,2638.8,2638.6,1.292]
[1724316362823,2.4343,2638.7,2638.6,1.292]
[1724316365011,6.22404,2638.7,2638.6,1.292]
[1724316365226,6.24024,2638.7,2638.6,1.292]
[1724316366266,2.4505,2638.5,2638.4,1.292]
[1724316366785,6.24053,2638.5,2638.4,1.292]
[1724316367123,6.24053,2638.5,2638.4,0.792]
[1724316367322,3.55999307,2638.5,2638.4,0.792]
[1724316368180,7.35002307,2638.5,2638.4,1.292]
[1724316368748,4.89952307,2638.5,2637.7,3.79109]
[1724316368924,2.3216,2638.4,2638.3,1.292]
[1724316369130,6.98071231,2638.4,2638.3,1.292]
[1724316369325,3.19054231,2638.4,2638.3,1.292]
[1724316374582,2.3216,2638.4,2638.3,1.292]
[1724316374760,3.7899,2638.6,2638.3,1.292]
[1724316374761,2.4148,2638.6,2638.3,1.292]
[1724316374942,2.4148,2638.6,2638.5,1.292]
[1724316376056,6.20468,2638.6,2638.5,1.292]
[1724316376459,7.40228683,2638.6,2638.5,1.292]
[1724316377087,3.61240683,2638.6,2638.5,1.292]
[1724316377557,7.40228683,2638.6,2638.5,1.292]
[1724316377786,3.61240683,2638.6,2638.5,1.292]
[1724316377987,2.4148,2638.6,2638.5,1.292]
[1724316378930,6.20468,2638.6,2638.5,1.292]
[1724316380285,2.3827,2638.3,2637.7,5.3634]
[1724316380484,2.3827,2638.3,2638.2,1.292]
[1724316382323,3.6431327,2638.3,2638.2,1.292]
[1724316382820,3.79058,2638.2,2638.1,1.292]
[1724316382971,6.11378,2638.2,2638.1,1.292]
[1724316383367,9.90436,2638.2,2638.1,1.292]
[1724316384582,6.11378,2638.2,2638.1,1.292]
[1724316384881,2.3232,2638.2,2638.1,1.292]
[1724316385499,2.934547,2638.2,2638.1,1.292]
[1724316385999,2.3232,2638.2,2638.1,1.292]
[1724316389614,2.3323,2637.9,2637.3,3.79168]
[1724316389866,0.612314,2637.8,2637.6,1.292]
[1724316390372,4.403354,2637.8,2637.6,1.292]
[1724316391659,2.4587,2637.7,2637.6,1.292]
[1724316392213,2.4587,2637.7,2637.0,3.7921]
[1724316392461,6.9361054,2637.7,2637.5,1.292]
[1724316393553,3.1449054,2637.7,2637.5,1.292]
[1724316394569,2.4587,2637.7,2637.5,1.292]
[1724316396177,2.4587,2637.7,2637.1,3.0]
[1724316396315,2.2937,2637.6,2637.4,1.292]
[1724316396965,2.2937,2637.6,2637.3,1.292]